bitfinex/quotes_SOLUSD_20240621
["timestamp","ask_amount","ask_price","bid_price","bid_amount"]
[1718976695618,6.1467,130.16,130.07,37.9266]
[1718976695838,270.46,130.21,130.09,15.373]
[1718976696039,6.145,130.19,130.13,6.1473]
[1718976696413,6.1456,130.18,130.09,15.373]
[1718976696609,255.1,130.21,130.15,6.1467]
[1718976696808,6.1451,130.19,130.13,6.1474]
[1718976697033,6.1465,130.16,130.1,6.1489]
[1718976697250,6.1473,130.14,130.09,6.1495]
[1718976697453,6.1473,130.14,130.07,22.5505]
[1718976697454,6.1473,130.14,130.08,6.1498]
[1718976697851,6.1487,130.11,130.07,22.5505]
[1718976698230,34.78,130.17,130.03,27.912]
[1718976698545,6.1506,130.07,130.03,21.76]
[1718976699054,6.15,130.09,130.03,27.9121]
[1718976699248,20.0,130.08,130.03,21.76]
[1718976699449,20.0,130.09,130.03,21.76]
[1718976699650,20.0,130.09,130.05,6.1512]
[1718976699819,255.1,130.14,130.03,37.141]
[1718976700019,6.1483,130.12,130.03,37.141]
[1718976700249,45.34,130.13,130.03,21.76]
[1718976700432,20.0,130.12,130.03,27.9122]
[1718976700640,6.1497,130.09,130.04,6.1519]
[1718976700864,6.1503,130.08,130.03,27.9123]
[1718976701021,0.34,130.11,130.03,21.76]
[1718976701341,45.17,130.11,130.03,21.76]
[1718976701542,20.17,130.1,130.03,21.76]
[1718976701726,20.0,130.1,130.03,21.76]
[1718976701923,20.0,130.13,130.04,0.17]
[1718976702122,20.0,130.13,130.09,6.1495]
[1718976702348,20.0,130.13,130.08,6.1498]
[1718976702647,6.1464,130.16,130.1,6.1487]
[1718976702849,20.0,130.15,130.11,6.1486]
[1718976703141,255.1,130.2,130.04,31.0986]
[1718976703345,285.8235,130.2,130.03,21.76]
[1718976703526,6.1484,130.12,130.03,37.1409]
[1718976703866,6.1483,130.12,130.07,6.1502]
[1718976704024,6.1478,130.13,130.07,6.1502]
[1718976704451,6.1476,130.14,130.08,6.1497]
[1718976704737,45.0,130.13,130.07,6.1503]
[1718976704919,6.1483,130.12,130.07,6.1503]
[1718976705116,51.1474,130.14,130.08,6.1498]
[1718976705620,51.1474,130.14,130.09,6.1495]
[1718976705819,6.1458,130.17,130.12,6.148]
[1718976706021,30.7172,130.23,130.12,16.2625]
[1718976706267,6.1459,130.17,130.12,22.4105]
[1718976706465,6.1455,130.18,130.13,6.1476]
[1718976706750,6.1455,130.18,130.12,16.2625]
[1718976706958,6.1456,130.18,130.12,16.2625]
[1718976707161,37.3826,130.23,130.12,16.2625]
[1718976707162,6.1462,130.17,130.12,16.2625]
[1718976707446,6.1462,130.17,130.12,22.4106]
[1718976707617,6.1455,130.18,130.12,22.4106]
[1718976708018,6.1455,130.18,130.13,6.1476]
[1718976708435,6.1457,130.18,130.12,22.4104]
[1718976708639,6.1464,130.16,130.12,16.2625]
[1718976708846,6.1468,130.15,130.12,16.2625]
[1718976709050,6.1474,130.14,130.1,6.6654]
[1718976709250,6.1477,130.13,130.1,6.6654]
[1718976709458,6.1482,130.12,130.1,6.6654]
[1718976709824,6.1463,130.16,130.1,6.6654]
[1718976710040,6.1463,130.16,130.1,12.8142]
[1718976710232,37.3826,130.23,130.1,6.6654]
[1718976710445,6.1456,130.18,130.1,6.6654]
[1718976710647,20.0,130.17,130.14,6.1469]
[1718976710832,20.0,130.17,130.1,6.6654]
[1718976710833,6.1458,130.17,130.1,6.6654]
[1718976711152,6.1454,130.18,130.13,6.1476]
[1718976711638,15.362,130.2,130.12,6.1479]
[1718976711829,6.1456,130.18,130.13,6.1476]
[1718976712244,45.0,130.17,130.1,6.6654]
[1718976712440,20.0,130.16,130.1,6.6654]
[1718976712636,6.1482,130.12,130.1,6.6654]
[1718976712842,0.34,130.15,130.07,6.3172]
[1718976713031,6.1496,130.09,130.07,6.3172]
[1718976713547,6.15,130.08,130.07,6.3172]
[1718976713748,6.15,130.08,130.04,15.4592]
[1718976713749,6.1496,130.09,130.04,15.4592]
[1718976714060,6.1502,130.08,130.03,6.3757]
[1718976714353,6.1506,130.07,130.03,6.3757]
[1718976714538,15.3702,130.13,130.04,6.1515]
[1718976714745,65.34,130.12,130.04,6.1515]
[1718976714927,6.1493,130.1,130.04,6.1515]
[1718976715127,6.1488,130.11,130.05,6.1513]
[1718976715333,6.1499,130.09,130.03,12.5279]
[1718976715530,6.1501,130.08,130.03,6.3757]
[1718976715829,6.1501,130.08,130.03,12.5278]
[1718976716055,80.7113,130.12,130.04,6.1517]
[1718976716257,6.1493,130.1,130.05,6.1513]
[1718976716844,80.7113,130.12,130.03,6.3757]
[1718976717155,80.7113,130.12,130.03,12.5279]
[1718976717156,6.1499,130.09,130.03,12.5279]
[1718976717748,6.1498,130.09,130.03,12.5281]
[1718976718066,6.1492,130.1,130.04,6.1518]
[1718976718443,6.1497,130.09,130.03,12.528]
[1718976718651,80.7113,130.12,130.03,6.3757]
[1718976718834,6.1501,130.08,130.03,6.3757]
[1718976719258,6.1497,130.09,130.03,12.528]
[1718976719429,15.3724,130.11,130.03,6.3757]
[1718976719640,6.1507,130.07,130.03,6.3757]
[1718976720268,6.1501,130.08,130.03,6.3757]
[1718976720565,0.34,130.1,130.0,16.2177]
[1718976720566,71.1507,130.07,130.0,16.2177]
[1718976720773,65.0,130.07,130.02,6.1528]
[1718976720979,20.0,130.07,130.02,6.1525]
[1718976721282,6.4892,130.1,130.04,6.1516]
[1718976721568,26.1496,130.09,130.03,6.1522]
[1718976722771,20.0,130.09,130.0,16.2177]
[1718976722977,6.151,130.06,130.0,22.3712]
[1718976723162,6.1506,130.07,130.01,6.1532]
[1718976723858,35.3738,130.1,130.01,6.1532]
[1718976724061,35.3738,130.1,130.01,6.1531]
[1718976724062,6.1505,130.07,130.01,6.1531]
[1718976724572,6.1507,130.07,130.01,6.1533]
[1718976724746,6.1506,130.07,130.01,6.1532]
[1718976724942,51.3198,130.09,130.03,6.1523]
[1718976725161,20.0,130.08,130.0,16.2177]
[1718976725350,26.15,130.08,130.02,6.1525]
[1718976725770,15.3681,130.14,130.0,16.2177]
[1718976725955,20.0,130.13,130.03,0.17]
[1718976726248,6.1506,130.07,130.01,6.1531]
[1718976726472,78.8156,130.17,130.06,6.4426]
[1718976726650,15.367,130.15,130.06,6.4426]
[1718976726870,6.1482,130.12,130.06,12.5933]
[1718976727443,15.3648,130.17,130.07,15.1393]
[1718976727648,261.2455,130.18,130.12,6.1481]
[1718976727849,6.1455,130.18,130.12,6.1481]
[1718976728076,6.145,130.19,130.12,6.1477]
[1718976728387,15.3621,130.2,130.08,0.17]
[1718976728690,13.3053,130.23,130.08,6.15]
[1718976728691,6.1476,130.14,130.08,6.15]
[1718976729050,6.1465,130.16,130.1,6.1488]
[1718976729266,6.1467,130.15,130.09,6.1493]
[1718976729468,6.1454,130.18,130.12,6.148]
[1718976730276,20.0,130.17,130.13,6.1476]
[1718976730474,20.0,130.17,130.1,15.3727]
[1718976730475,26.1454,130.18,130.12,6.148]
[1718976730659,6.1458,130.17,130.11,6.1484]
[1718976731351,6.1455,130.18,130.12,6.1481]
[1718976731552,15.3609,130.2,130.09,6.6618]
[1718976731770,6.1465,130.16,130.1,6.1488]
[1718976731971,6.1443,130.21,130.09,6.6618]
[1718976732276,20.0,130.22,130.09,6.6618]
[1718976732277,20.0,130.22,130.14,15.9495]
[1718976732569,6.1436,130.22,130.16,12.3176]
[1718976732753,20.0,130.28,130.16,6.1714]
[1718976732957,6.1418,130.26,130.2,6.1443]
[1718976733178,6.1421,130.25,130.19,6.1446]
[1718976733392,15.3518,130.28,130.16,21.5362]
[1718976733568,15.3518,130.28,130.22,6.1433]
[1718976733569,6.1406,130.28,130.22,6.1433]
[1718976733875,637.6,130.34,130.17,0.34]
[1718976734074,6.1421,130.25,130.16,21.5368]
[1718976734264,15.3504,130.29,130.17,0.34]
[1718976734653,6.1421,130.25,130.19,6.1445]
[1718976734858,6.1428,130.24,130.18,6.1451]
[1718976735058,15.3553,130.25,130.16,6.1714]
[1718976735254,6.1423,130.25,130.16,6.1714]
[1718976735470,6.1714,130.31,130.16,6.1714]
[1718976735669,6.1436,130.22,130.16,12.3176]
[1718976735869,3.39240521,130.3,130.16,6.1714]
[1718976735870,6.1439,130.21,130.16,6.1714]
[1718976736077,6.1445,130.2,130.16,6.1714]
[1718976736267,45.0,130.19,130.16,6.1714]
[1718976736579,45.0,130.19,130.01,100.0]
[1718976736580,13.3053,130.18,130.01,15.3834]
[1718976736761,79.99984752,130.17,130.01,15.3834]
[1718976736959,6.1489,130.11,130.01,15.3834]
[1718976737192,65.34,130.1,130.04,6.1516]
[1718976737367,65.34,130.1,130.01,15.3834]
[1718976737368,6.1502,130.08,130.01,6.1532]
[1718976737574,26.1505,130.07,130.0,6.1536]
[1718976737762,6.3198,130.09,130.02,6.1525]
[1718976737958,26.1501,130.08,130.02,6.1525]
[1718976738158,26.1501,130.08,129.98,15.3859]
[1718976738420,26.1501,130.08,130.02,6.1527]
[1718976738563,6.1505,130.07,130.0,6.1535]
[1718976738988,6.1509,130.07,130.0,6.1535]
[1718976740061,20.0,130.08,130.02,6.1524]
[1718976740374,20.0,130.08,130.01,6.1533]
[1718976740681,0.32512128,130.17,130.0,6.1537]
[1718976740682,6.151,130.06,130.0,6.1537]
[1718976740891,6.1519,130.04,129.98,6.1546]
[1718976741189,6.1519,130.04,129.96,6.5998]
[1718976741190,6.1527,130.03,129.97,6.1551]
[1718976741487,15.3773,130.07,129.98,6.1547]
[1718976741686,6.1526,130.03,129.96,6.5998]
[1718976741891,20.0,130.02,129.96,12.7551]
[1718976742069,20.0,130.02,129.96,6.5998]
[1718976742278,6.1534,130.01,129.96,6.5998]
[1718976742514,20.0,130.0,129.96,6.5998]
[1718976742798,26.1539,130.0,129.96,6.5998]
[1718976743012,6.1551,129.98,129.91,6.1579]
[1718976743171,20.0,129.97,129.88,6.641]
[1718976743374,20.0,130.0,129.9,6.1585]
[1718976743607,6.1553,129.97,129.91,6.158]
[1718976743977,6.1549,129.98,129.91,6.158]
[1718976744390,6.1549,129.98,129.88,6.641]
[1718976744391,20.17,129.97,129.88,6.641]
[1718976744592,51.1558,129.96,129.89,7.0165609]
[1718976745110,6.1562,129.95,129.89,7.0165609]
[1718976745283,26.1555,129.97,129.91,6.1578]
[1718976745477,20.0,129.97,129.91,6.1578]
[1718976745697,6.1557,129.97,129.91,6.158]
[1718976746002,26.1545,129.99,129.93,6.1571]
[1718976746200,255.1,130.06,129.89,0.8576609]
[1718976746403,255.1,130.06,129.9,0.17]
[1718976746404,35.3796,130.05,129.9,0.17]
[1718976746577,35.3796,130.05,129.93,15.3919]
[1718976746899,6.1525,130.03,129.96,6.1554]
[1718976747401,26.153,130.02,129.94,0.34]
[1718976747571,35.3796,130.05,129.97,6.1548]
[1718976747572,6.1521,130.04,129.97,6.1548]
[1718976747774,20.0,130.03,129.98,6.1547]
[1718976748408,46.195503,130.1,129.98,6.1112]
[1718976748592,26.1498,130.09,130.03,6.1521]
[1718976748905,20.0,130.09,129.99,15.7247]
[1718976749092,20.0,130.1,129.99,15.7247]
[1718976749290,270.4726,130.11,129.99,15.7247]
[1718976749491,270.4726,130.11,130.02,6.1526]
[1718976749697,6.1491,130.1,130.04,6.1516]
[1718976749885,6.1491,130.1,130.03,6.1523]
[1718976749886,6.1495,130.1,130.03,6.1523]
[1718976750084,6.1495,130.1,130.02,0.34]
[1718976750301,6.1487,130.11,130.04,6.1517]
[1718976750492,6.1491,130.1,130.04,6.1517]
[1718976750696,6.1496,130.09,130.03,6.1523]
[1718976751011,15.3702,130.13,129.98,6.1112]
[1718976751208,6.1493,130.1,130.03,6.1519]
[1718976751386,6.1496,130.09,130.03,6.1519]
[1718976751586,15.3716,130.11,129.99,0.34]
[1718976751894,6.1495,130.09,130.03,6.1523]
[1718976752196,6.1493,130.1,130.04,6.1518]
[1718976752406,20.0,130.09,130.04,6.1518]
[1718976752590,26.1496,130.09,130.03,6.1522]
[1718976752906,6.1504,130.08,130.02,6.1528]
[1718976753083,6.1506,130.07,130.01,6.1531]
[1718976753492,6.1502,130.08,130.01,6.1531]
[1718976753790,45.0,130.07,129.98,6.1112]
[1718976753986,6.153,130.02,129.98,6.1112]
[1718976754494,26.1535,130.01,129.94,6.1564]
[1718976754689,6.1538,130.0,129.94,6.1564]
[1718976754894,20.0,129.99,129.95,6.156]
[1718976755091,20.0,130.01,129.95,6.156]
[1718976755402,20.0,130.01,129.96,6.1556]
[1718976755918,20.0,130.01,129.92,21.9914]
[1718976756087,35.3821,130.03,129.92,6.5975]
[1718976756400,60.7232,130.02,129.92,6.5975]
[1718976756601,15.3832,130.02,129.92,6.5975]
[1718976756803,26.1536,130.01,129.95,6.1558]
[1718976757104,26.1535,130.01,129.94,6.1562]
[1718976757306,20.0,130.01,129.92,6.5975]
[1718976757504,6.1535,130.01,129.92,6.5975]
[1718976757820,26.1539,130.0,129.92,6.5975]
[1718976757985,6.1543,129.99,129.93,6.3269]
[1718976758181,26.154,130.0,129.93,6.3269]
[1718976758404,26.154,130.0,129.94,6.1566]
[1718976759606,26.154,130.0,129.92,6.5975]
[1718976759607,6.1554,129.97,129.92,6.5975]
[1718976759826,6.1557,129.96,129.92,6.5975]
[1718976759985,6.1562,129.95,129.89,7.0165609]
[1718976760189,6.1567,129.94,129.89,0.8576609]
[1718976760807,6.1568,129.94,129.89,0.8576609]
[1718976760991,6.1564,129.95,129.89,7.0165609]
[1718976761307,20.0,129.94,129.89,0.8576609]
[1718976761492,20.0,129.94,129.89,7.0165609]
[1718976761693,26.1566,129.94,129.89,0.8576609]
[1718976763114,20.0,129.94,129.89,0.8576609]
[1718976763306,20.0,129.96,129.89,0.8576609]
[1718976763495,6.1571,129.93,129.89,0.8576609]
[1718976763699,6.1568,129.94,129.89,0.8576609]
[1718976764210,6.1585,129.9,129.89,0.8576609]
[1718976764510,6.1583,129.91,129.89,0.8576609]
[1718976764814,26.1585,129.9,129.89,0.8576609]
[1718976765323,71.1585,129.9,129.89,0.8576609]
[1718976765494,20.0,129.9,129.89,0.8576609]
[1718976766713,26.1585,129.9,129.89,0.8576609]
[1718976767713,71.3285,129.9,129.89,0.8576609]
[1718976767923,71.3285,129.9,129.76,16.2699609]
[1718976767924,65.34,129.9,129.76,16.2699609]
[1718976768213,65.34,129.9,129.79,6.1634]
[1718976768214,6.1611,129.85,129.79,6.1634]
[1718976768474,6.1605,129.86,129.8,6.1631]
[1718976768720,6.1609,129.85,129.8,6.1631]
[1718976768902,60.7385,129.89,129.79,6.1637]
[1718976769108,60.7385,129.89,129.76,16.2699609]
[1718976769109,6.1608,129.86,129.8,6.1632]
[1718976769305,6.1631,129.81,129.76,0.8576609]
[1718976769503,15.4045,129.84,129.74,15.78975492]
[1718976769504,6.1657,129.75,129.74,15.78975492]
[1718976769705,6.1658,129.75,129.64,15.4273]
[1718976769908,6.1667,129.73,129.66,6.1698]
[1718976770206,20.0,129.74,129.58,16.26996]
[1718976770413,6.1687,129.69,129.62,7.0293609]
[1718976770605,0.17,129.7,129.62,0.8576609]
[1718976770930,20.0,129.76,129.66,6.1696]
[1718976771221,45.0,129.75,129.62,0.8576609]
[1718976771415,20.34,129.74,129.62,0.8576609]
[1718976771613,6.1689,129.69,129.62,0.8576609]
[1718976771832,6.1697,129.67,129.62,0.8576609]
[1718976771993,45.0,129.68,129.62,0.8576609]
[1718976772207,20.0,129.67,129.62,0.8576609]
[1718976772728,45.0,129.66,129.62,0.8576609]
[1718976772928,20.0,129.65,129.62,0.8576609]
[1718976773229,6.1714,129.63,129.62,0.8576609]
[1718976773407,71.1714,129.63,129.62,0.8576609]
[1718976773728,26.1714,129.63,129.62,0.8576609]
[1718976774412,100.13,129.63,129.51,6.1771]
[1718976774610,15.4309,129.61,129.52,6.1764]
[1718976774832,6.1727,129.61,129.54,6.1753]
[1718976775130,255.1,129.65,129.61,6.1722]
[1718976775327,34.79,129.69,129.54,15.6752]
[1718976775533,20.0,129.68,129.54,15.6752]
[1718976775714,20.0,129.68,129.57,15.4346]
[1718976775910,6.1699,129.67,129.57,15.4346]
[1718976776227,26.1694,129.68,129.57,15.4346]
[1718976776523,20.0,129.68,129.54,15.6752]
[1718976776730,26.169,129.68,129.55,0.17]
[1718976776904,20.0,129.68,129.6,6.1724]
[1718976777106,6.1704,129.66,129.59,6.1731]
[1718976777421,20.0,129.7,129.62,6.1718]
[1718976777623,20.0,129.7,129.61,15.4305]
[1718976777819,255.1,129.78,129.62,6.1715]
[1718976778019,255.1,129.78,129.56,30.8722]
[1718976778221,8.03705031,129.77,129.61,15.4298]
[1718976778534,6.1685,129.7,129.62,6.1718]
[1718976778708,6.1685,129.7,129.56,30.8722]
[1718976778904,6.1686,129.69,129.62,6.1715]
[1718976779223,6.1682,129.7,129.6,15.4318]
[1718976779423,8.03705031,129.77,129.64,6.1709]
[1718976779730,0.17,129.76,129.57,15.4349]
[1718976779913,6.1707,129.65,129.56,0.17]
[1718976780111,6.1701,129.66,129.59,6.1731]
[1718976780318,255.1,129.7,129.53,6.5619]
[1718976780516,261.2682,129.7,129.59,15.4322]
[1718976780716,20.0,129.76,129.64,15.4271]
[1718976780939,6.1662,129.74,129.68,6.1686]
[1718976781139,20.0,129.73,129.64,15.4271]
[1718976781312,34.79,129.77,129.64,6.1707]
[1718976781510,15.4131,129.76,129.63,6.2189]
[1718976781717,15.4131,129.76,129.67,6.1693]
[1718976781928,255.1,129.78,129.67,15.3483]
[1718976782231,6.165,129.77,129.68,15.422]
[1718976782425,255.1,129.78,129.67,15.3483]
[1718976782809,20.0,129.77,129.71,6.1675]
[1718976783030,20.0,129.77,129.67,15.3483]
[1718976783031,382.5,129.81,129.68,6.169]
[1718976783220,382.5,129.81,129.67,21.5175]
[1718976783418,6.167,129.73,129.67,15.3483]
[1718976783617,382.5,129.81,129.68,6.1686]
[1718976783836,6.1658,129.75,129.67,15.3483]
[1718976784031,3.39240521,129.8,129.67,21.5176]
[1718976784218,6.1676,129.71,129.63,6.2189]
[1718976784418,26.1682,129.7,129.63,12.3902]
[1718976784619,20.0,129.7,129.63,6.2189]
[1718976784829,20.0,129.7,129.65,6.1701]
[1718976785024,20.0,129.71,129.64,15.4263]
[1718976785331,20.0,129.76,129.68,6.1688]
[1718976785546,20.0,129.76,129.66,6.1698]
[1718976785834,6.1669,129.73,129.67,6.1694]
[1718976786011,20.0,129.76,129.63,21.6472]
[1718976786217,6.1674,129.72,129.63,21.6472]
[1718976786414,20.0,129.71,129.63,6.2189]
[1718976786717,20.0,129.76,129.64,6.1707]
[1718976786925,45.34,129.75,129.63,12.39]
[1718976787131,6.1682,129.7,129.63,6.2189]
[1718976787332,6.1682,129.7,129.64,6.1706]
[1718976787535,6.1674,129.72,129.65,6.17]
[1718976787714,26.1676,129.71,129.65,6.17]
[1718976788042,6.1693,129.68,129.63,6.2189]
[1718976788342,20.0,129.67,129.58,6.0665]
[1718976788547,20.0,129.71,129.58,6.0665]
[1718976788717,6.1693,129.68,129.62,6.1715]
[1718976788920,20.0,129.67,129.63,6.1712]
[1718976789137,34.79,129.73,129.58,6.0665]
[1718976789348,20.0,129.72,129.58,12.2398]
[1718976789640,20.0,129.72,129.58,6.0665]
[1718976789837,20.0,129.73,129.61,6.1721]
[1718976790136,20.0,129.73,129.65,6.1704]
[1718976790342,20.0,129.76,129.61,15.4304]
[1718976790644,20.0,129.76,129.63,6.1709]
[1718976790817,20.0,129.76,129.6,6.1724]
[1718976791018,20.0,129.76,129.58,6.0665]
[1718976791237,100.0,129.75,129.58,6.0665]
[1718976791468,10.0,129.72,129.56,16.3567]
[1718976791744,34.79,129.66,129.56,22.5311]
[1718976791926,20.0,129.65,129.56,22.5311]
[1718976792131,0.17,129.64,129.56,16.3567]
[1718976792331,45.0,129.64,129.53,6.0946]
[1718976792634,20.0,129.63,129.58,6.1735]
[1718976792824,255.1,129.68,129.54,15.4388]
[1718976793143,65.34,129.67,129.54,15.4388]
[1718976793329,65.34,129.67,129.53,12.2706]
[1718976793533,65.34,129.67,129.54,6.1753]
[1718976793734,65.34,129.67,129.53,6.0946]
[1718976794441,20.0,129.67,129.53,6.0946]
[1718976794747,20.0,129.7,129.57,15.4355]
[1718976794944,3.3798978,129.69,129.62,6.1718]
[1718976795159,3.3798978,129.69,129.63,6.1713]
[1718976795324,3.3798978,129.69,129.62,6.6006]
[1718976795523,3.3798978,129.69,129.66,6.1695]
[1718976795746,3.3798978,129.69,129.63,15.4284]
[1718976795951,3.3798978,129.69,129.62,6.6006]
[1718976796125,255.1,129.74,129.62,6.6006]
[1718976796321,258.49240521,129.74,129.65,6.1703]
[1718976796633,258.49240521,129.74,129.62,6.6006]
[1718976796946,258.49240521,129.74,129.63,0.34]
[1718976797152,3.39240521,129.74,129.72,6.167]
[1718976797341,20.0,129.81,129.73,6.1666]
[1718976797641,3.3798978,129.8,129.79,6.1638]
[1718976797850,3.3798978,129.8,129.74,0.17]
[1718976798042,3.3798978,129.8,129.74,15.5853]
[1718976798519,3.3798978,129.8,129.79,6.1638]
[1718976798725,3.3798978,129.8,129.78,6.1642]
[1718976799026,3.3798978,129.8,129.74,0.17]
[1718976799251,3.3798978,129.8,129.79,6.1638]
[1718976799460,10.7323,129.93,129.79,0.17]
[1718976799762,10.7323,129.93,129.73,34.96]
[1718976799763,15.4127,129.91,129.73,34.96]
[1718976799922,3.39240521,129.92,129.76,15.4121]
[1718976800123,3.39240521,129.92,129.78,6.1641]
[1718976800347,22.15681921,129.92,129.76,15.4121]
[1718976800645,3.39240521,129.92,129.78,15.41]
[1718976800859,3.39240521,129.92,129.83,6.1617]
[1718976801033,3.39240521,129.92,129.8,15.4077]
[1718976801222,3.39240521,129.92,129.82,6.162]
[1718976801424,23.39240521,129.92,129.82,6.162]
[1718976801667,23.39240521,129.92,129.82,6.1622]
[1718976802150,15.4077,129.94,129.84,6.1613]
[1718976802328,15.4077,129.94,129.85,6.1607]
[1718976802523,15.4077,129.94,129.84,6.1612]
[1718976802719,0.8576609,129.95,129.79,15.5793]
[1718976802935,15.4059,129.94,129.84,6.1613]
[1718976803244,4.25006611,129.95,129.86,6.1602]
[1718976803543,4.25006611,129.95,129.79,0.17]
[1718976803544,4.25006611,129.95,129.84,6.1613]
[1718976803850,10.7323,129.94,129.83,6.1617]
[1718976804045,10.7323,129.94,129.84,6.1611]
[1718976804422,10.7323,129.94,129.85,6.1607]
[1718976804423,20.0,129.93,129.85,6.1607]
[1718976804725,10.7323,129.94,129.88,6.1592]
[1718976804925,0.8576609,129.95,129.89,6.1586]
[1718976805140,0.8576609,129.95,129.86,15.4007]
[1718976805335,0.8576609,129.95,129.88,6.1594]
[1718976805538,0.8576609,129.95,129.86,15.4007]
[1718976805844,0.8576609,129.95,129.85,0.34]
[1718976806540,0.8576609,129.95,129.9,6.1584]
[1718976806740,0.8576609,129.95,129.88,15.3986]
[1718976806946,0.8576609,129.95,129.85,31.1446]
[1718976806947,0.8576609,129.95,129.93,6.1567]
[1718976807247,0.8576609,129.95,129.92,6.1573]
[1718976807461,0.8576609,129.95,129.94,6.1566]
[1718976807827,0.8576609,129.95,129.93,6.1571]
[1718976808029,0.8576609,129.95,129.94,6.1566]
[1718976808350,0.8576609,129.95,129.94,6.4966]
[1718976808550,255.1,130.05,129.95,15.3904]
[1718976808742,11.5899609,130.09,130.0,6.1537]
[1718976808948,20.0,130.08,129.96,15.5582]
[1718976809133,0.8576609,130.09,130.0,6.1536]
[1718976809336,0.8576609,130.09,129.96,15.5582]
[1718976809543,0.8576609,130.09,130.0,6.1534]
[1718976809767,0.8576609,130.09,130.01,6.1531]
[1718976810062,0.8576609,130.09,130.0,6.1537]
[1718976810435,0.8576609,130.09,129.97,0.17]
[1718976810655,0.8576609,130.09,129.98,15.3867]
[1718976810831,0.8576609,130.09,130.05,6.151]
[1718976811149,0.8576609,130.09,130.05,6.1513]
[1718976811360,0.8576609,130.09,130.04,6.1517]
[1718976811528,0.8576609,130.09,130.02,15.3819]
[1718976811852,0.8576609,130.09,130.07,6.1504]
[1718976812048,0.8576609,130.09,130.08,6.15]
[1718976812228,0.8576609,130.09,130.03,15.7201]
[1718976812430,0.8576609,130.09,130.08,6.15]
[1718976812948,0.8576609,130.09,130.08,21.6951]
[1718976813154,0.8576609,130.09,130.08,6.49]
[1718976813539,0.8576609,130.09,130.08,6.15]
[1718976814148,0.8576609,130.09,130.08,6.49]
[1718976814332,11.5897,130.24,130.14,6.1469]
[1718976814535,11.5897,130.24,130.15,6.1466]
[1718976814739,11.5897,130.24,130.14,6.1472]
[1718976814946,11.5897,130.24,130.11,6.1482]
[1718976815155,11.5897,130.24,130.1,22.1637]
[1718976815426,11.5897,130.24,130.12,6.1478]
[1718976815654,11.5897,130.24,130.1,6.621]
[1718976816152,26.9634,130.24,130.1,6.621]
[1718976816351,26.9634,130.24,130.1,6.1487]
[1718976816655,0.17,130.21,130.05,6.2745]
[1718976816838,0.34,130.21,130.05,6.2745]
[1718976817247,20.34,130.21,130.05,21.6525]
[1718976817446,45.0,130.2,130.05,21.6525]
[1718976817634,20.34,130.19,130.11,6.1485]
[1718976817947,0.8576609,130.22,130.15,6.1464]
[1718976818149,0.8576609,130.22,130.11,15.3713]
[1718976818470,0.8576609,130.22,130.12,0.17]
[1718976818640,0.8576609,130.22,130.17,6.1457]
[1718976818834,0.8576609,130.22,130.13,15.369]
[1718976818835,0.8576609,130.22,130.16,6.1459]
[1718976819057,0.8576609,130.22,130.13,15.369]
[1718976819058,0.8576609,130.22,130.12,0.34]
[1718976819236,0.8576609,130.22,130.11,0.34]
[1718976819436,0.8576609,130.22,130.17,6.1457]